Cogmind - Beta 15 *** ADVENTURER MODE // 2025.06.18 @ 19:58:39 // Winter2019/RPGLIKE Player: H_ Result: Destroyed by as-69072 with Assembled Rifle Performance ------------- Evolutions (0) 0 Regions Visited (2) 400 Robots Destroyed (22) 110 Value Destroyed (451) 451 Prototype IDs (2) 40 Alien Tech Used (0) 0 Bonus (0) 0 TOTAL SCORE: 1001 Bonus ------- None Cogmind --------- Core Integrity 0/600 Matter 293/300 Energy 125/125 System Corruption 0% Temperature Cool (20) Movement Treading (160) Location -10/Mines Parts ------- > --- POWER (1) -------- Light Ion Engine > --- PROPULSION (2) --- Light Treads Light Treads > --- UTILITY (4) ------ Structural Scanner Signal Interpreter Improved Terrain Scanner Seismic Detector > --- WEAPON (2) ------- Light Assault Rifle Light Assault Rifle > --- INVENTORY (3) ---- Mining Claw Peak State ------------ > --- POWER ------------ Light Ion Engine > --- PROPULSION ------- Light Treads Light Treads > --- UTILITY ---------- Improved Terrain Scanner Seismic Detector Improved Targeting Computer > --- WEAPON ----------- EM Pulse Gun Light Assault Rifle > --- INVENTORY -------- (None) [Rating: 11] Favorites ----------- Power Light Ion Engine Engine Light Ion Engine Propulsion Light Treads Treads Light Treads Utility Improved Terrain Scanner Device Improved Terrain Scanner Processor Signal Interpreter Weapon Light Assault Rifle Energy Gun EM Pulse Gun Ballistic Gun Light Assault Rifle Slashing Weapon Mining Claw Build | -11 -10 -10 ------- Run | Yrd Mat Min Slots Evolved 5 | 4 . 1 Power . | . . . Propulsion 1 | 1 . . Utility 3 | 2 . 1 Weapon 1 | 1 . . Parts Attached 15 | 8 5 2 Power 3 | 2 . 1 Engine 3 | 2 . 1 Core . | . . . Reactor . | . . . Propulsion 2 | 2 . . Treads 2 | 2 . . Leg . | . . . Wheel . | . . . Hover . | . . . Flight . | . . . Utility 5 | 2 2 1 Device 3 | 2 1 . Storage . | . . . Processor 2 | . 1 1 Hackware . | . . . Protection . | . . . Artifact . | . . . Weapon 5 | 2 3 . Energy Gun 1 | 1 . . Energy Cannon . | . . . Ballistic Gun 2 | 1 1 . Ballistic Cannon . | . . . Launcher . | . . . Special Weapon . | . . . Impact Weapon . | . . . Slashing Weapon 2 | . 2 . Piercing Weapon . | . . . Special Melee Weapon . | . . . Unidentified Prototypes . | . . . Parts Lost . | . . . Power . | . . . Propulsion . | . . . Utility . | . . . Weapon . | . . . Highest Loss Streak . | . . . To Critical Strikes . | . . . Average Backups 1 | . . 1 Power . | . . . Propulsion . | . . . Utility . | . . . Weapon . | . . 1 Tool/Special . | . . . Unused Backups 2 | 1 . 1 Power 1 | 1 . . Propulsion . | . . . Utility 1 | . . 1 Weapon . | . . . Tool/Special . | . . . Average Slot Usage (%) 98 | . 97 100 Engine 11 | . 12 11 Treads 23 | . 24 22 Device 34 | . 35 33 Processor 4 | . . 10 Energy Gun 1 | . 3 . Ballistic Gun 21 | . 20 22 Peak Build Rating 11 | 9 11 11 Average Rating 9 | 5 9 10 On Entrance 6 | . 9 10 Naked Turns . | . . . Heaviest Build 10 | 8 10 8 Greatest Support 40 | 40 40 40 Greatest Overweight (x) 1 | . 1 . Average Overweight (x) . | . . . Largest Inventory Capacity 3 | 3 3 3 Average Capacity 2 | 2 3 3 Most Carried 3 | 2 3 3 Average Carried 1 | . . 1 Final Capacity 3 | 3 3 3 Final Carried 3 | . 3 1 Class Distribution -------------------- 81% | Scavenger-Mutant 18% | Mutant Dominant Class ---------------- Scavenger-Mutant | -10/Materials Scavenger-Mutant | -10/Mines Resources | -11 -10 -10 ----------- Run | Yrd Mat Min Matter Collected 574 | 288 146 140 Remotely . | . . . Salvage Created 781 | 180 395 206 Parts 44 | 11 20 13 Haulers Intercepted . | . . . Recyclers Shooed . | . . . Parts Field Recycled . | . . . Retrieved Matter . | . . . Parts Self-Destructed . | . . . Prevented . | . . . Kills | -11 -10 -10 ------- Run | Yrd Mat Min Combat Hostiles Destroyed 24 | . 9 15 Guns 22 | . 7 15 AOE 2 | . 2 . Classes Destroyed 8 | 2 4 2 Worker 1 | . 1 . Tunneler 3 | 3 . . Recycler 1 | 1 . . Watcher 1 | . 1 . Swarmer 8 | . 2 6 Grunt 7 | . 7 . Demolisher 1 | . . 1 Assembled 8 | . . 8 Best Kill Streak 3 | 2 3 3 Combat Bots Only 3 | . 3 3 Max Kills in Single Turn 2 | 1 2 1 Gunslinging . | . . . Exploded 2 | . 2 . Melee . | . . . Uniques/NPCs Destroyed . | . . . Combat | -11 -10 -10 -------- Run | Yrd Mat Min Hostile Shots Fired 140 | . 61 79 Missed 29 | . 14 15 Hits 111 | . 47 64 Melee 3 | . . 3 Projectile 108 | . 47 61 AOE 6 | . . 6 Critical Strikes 1 | . . 1 Part Disruptions 2 | . . 2 Damage Taken 1073 | . 428 645 Core 877 | . 355 522 Absorbed by Shields . | . . . Redirected to Core 611 | . 225 386 Ignored by Resistances 334 | . 138 196 Core Remaining (%) 100 | 100 . . Volleys Fired 94 | 8 33 53 Largest 2 | 2 2 2 Hottest 60 | 60 60 40 Shots Fired 169 | 16 66 87 Gun 169 | 16 66 87 Cannon . | . . . Launcher . | . . . Special . | . . . Kinetic 155 | 8 60 87 Thermal . | . . . Explosive . | . . . Electromagnetic 14 | 8 6 . Robot Hit Streak 17 | 6 17 10 Robot Miss Streak 4 | 2 2 4 Penetration Max . | . . . Secondary Targets 3 | . 2 1 Max Gunslinging Chain 1 | . 1 1 Shots Hit Robots 130 | 12 58 60 Core Hits 68 | 7 25 36 Critical Kills . | . . . Critical Parts Destroyed . | . . . Critical Strikes . | . . . Melee Attacks 2 | . 2 . Impact . | . . . Slashing 2 | . 2 . Piercing . | . . . Sneak Attacks . | . . . Combat Hostiles . | . . . Follow-up Attacks . | . . . Damage Inflicted 1189 | 126 588 475 Guns 1083 | 126 482 475 Cannons . | . . . Explosions 103 | . 103 . Melee . | . . . Ramming 3 | . 3 . Kinetic 928 | 34 419 475 Thermal 103 | . 103 . Explosive . | . . . Electromagnetic 155 | 92 63 . Impact . | . . . Slashing . | . . . Piercing . | . . . Highest Corruption . | . . . Average Corruption . | . . . Corruption Purged . | . . . Corruption Blocked . | . . . Overload Shots . | . . . Overflow Damage 1 | . 1 . Projectiles . | . . . Explosions 1 | . 1 . Melee . | . . . Knockbacks . | . . . Impact . | . . . Kinetic . | . . . Secondary . | . . . Self-Inflicted Damage . | . . . Shots . | . . . Rammed 1 | . 1 . Targets Rammed 1 | . 1 . Kicked . | . . . Crushed . | . . . Highest Temperature 67 | 20 67 40 Average Temperature 17 | 14 17 20 Received Heat Transfer 493 | . 273 220 Siege Activations . | . . . Martial Activations . | . . . Shielding Activations . | . . . Robots Disrupted . | . . . Combat Hostiles . | . . . Robots Corrupted . | . . . Combat Hostiles . | . . . Parts Fried . | . . . Impact Corruptions . | . . . Robots Melted . | . . . Combat Hostiles . | . . . Parts Melted . | . . . Heat Transferred 50 | . 50 . Parts Sabotaged . | . . . Parts Stolen . | . . . Parts Stripped . | . . . Power Chain Reactions 1 | . 1 . Alert | -11 -10 -10 ------- Run | Yrd Mat Min Maximum Alert Level . | . . . Low Security (%) 100 | 100 100 100 Level 1 . | . . . Level 2 . | . . . Level 3 . | . . . Level 4 . | . . . Level 5 . | . . . High Security . | . . . Max Security . | . . . Peak Influence 140 | 10 140 60 Initial . | . . . Average 27 | 1 42 10 Influence Increases 543 | 20 338 185 Destroy 0b10 Robot/C 320 | . 180 140 Destroy 0b10 Robot/NC 30 | 20 10 . Destroy Leader 82 | . 52 30 Successful Hack 8 | . 8 . Select Force Hacks 60 | . 60 . Disable Machine 9 | . 9 . Destroy Structure 4 | . 4 . Lose Combat Pursuer 30 | . 15 15 Influence Decreases 543 | 20 338 185 Time Decay 543 | 20 338 185 Squads Dispatched 2 | . 2 . Investigation 2 | . 2 . Extermination . | . . . Reinforcement . | . . . Assault . | . . . Garrison . | . . . Intercept . | . . . Searches Triggered . | . . . Construction Impeded . | . . . Haulers Reinforced . | . . . Active Scanning Responses . | . . . Cargo Convoy Interrupts . | . . . Stealth | -11 -10 -10 --------- Run | Yrd Mat Min Distress Signals . | . . . Communications Jammed . | . . . Distress Signals . | . . . Times Spotted 33 | . 14 19 Peak Tracking Total 4 | . 4 3 Tactical Retreats 4 | . 1 3 Traps | -11 -10 -10 ------- Run | Yrd Mat Min Traps Triggered 3 | . 3 . Indirectly . | . . . Trap Hack Attempts . | . . . Triggered . | . . . Disarmed . | . . . Reprogrammed . | . . . Reused . | . . . Traps Extracted . | . . . Installed . | . . . Triggered . | . . . Machines | -11 -10 -10 ---------- Run | Yrd Mat Min Machines Disabled 1 | . 1 . Max in Single Turn 1 | . 1 . Machines Repaired . | . . . Machines Dismantled . | . . . Machines Sabotaged . | . . . Overloaded Fab Kills . | . . . Hacking | -11 -10 -10 --------- Run | Yrd Mat Min Machines Accessed 11 | . 11 . Terminals 8 | . 8 . Fabricators . | . . . Repair Stations 1 | . 1 . Recycling Units 2 | . 2 . Scanalyzers . | . . . Garrison Access . | . . . Total Hacks 34 | . 34 . Successful 21 | . 21 . Failed 13 | . 13 . Catastrophic 1 | . 1 . Database Lockouts . | . . . Manual 25 | . 25 . Terminals 25 | . 25 . Fabricators . | . . . Repair Stations 1 | . 1 . Recycling Units 8 | . 8 . Scanalyzers . | . . . Garrison Access . | . . . Terminal Hacks 6 | . 6 . Prototype ID Bank 1 | . 1 . Branch Access Points 1 | . 1 . Terminal Index 1 | . 1 . Recycling Unit Index 1 | . 1 . Zone Layout 2 | . 2 . Fabricator Hacks . | . . . Repair Station Hacks . | . . . Recycling Unit Hacks 2 | . 2 . Retrieve Components 2 | . 2 . Scanalyzer . | . . . Garrison Access Hacks . | . . . Unauthorized Hacks 13 | . 13 . Terminals 9 | . 9 . Botnet 4 | . 4 . Skim 5 | . 5 . Fabricators . | . . . Repair Stations 1 | . 1 . Mechanics 1 | . 1 . Recycling Units 3 | . 3 . Mask 1 | . 1 . Tunnel 2 | . 2 . Scanalyzers . | . . . Garrison Access . | . . . Data Cores Recovered . | . . . Used . | . . . Hacking Detections 8 | . 8 . Full Trace Events . | . . . Feedback Events . | . . . Feedback Blocked . | . . . Robot Schematics Acquired . | . . . Robots Built . | . . . Authchips . | . . . Time . | . . . Total Robot Build Rating . | . . . Part Schematics Acquired . | . . . Parts Built . | . . . Authchips . | . . . Time . | . . . Total Part Build Rating . | . . . Parts Repaired . | . . . Time . | . . . Parts Recycled . | . . . Recycled Matter . | . . . Retrieved Matter . | . . . Retrieved Components 14 | . 14 . Parts Scanalyzed . | . . . Part Schematics Acquired . | . . . Parts Damaged . | . . . Bothacking | -11 -10 -10 ------------ Run | Yrd Mat Min Used RIF Installer . | . . . Robots Hacked . | . . . Non-combat . | . . . Combat . | . . . Robot Hacks Applied . | . . . Relay Couplers Released . | . . . Fabnet Peak Effective % . | . . . Robots Rewired . | . . . Allies Hacked . | . . . Hacks Repelled . | . . . Allies | -11 -10 -10 -------- Run | Yrd Mat Min Total Allies . | . . . Largest Group . | . . . Highest-Rated Group . | . . . Highest-Rated Ally . | . . . Total Orders . | . . . Ally Attacks . | . . . Total Damage . | . . . Kills . | . . . Allies Corrupted . | . . . Allies Melted . | . . . Intel | -11 -10 -10 ------- Run | Yrd Mat Min Active Infowar (turns) 2180 | 18 1276 886 Terrain 2180 | 18 1276 886 Structural 1958 | . 1072 886 Seismic 2179 | 17 1276 886 Robot Analysis Total . | . . . Derelict Logs Recovered 1 | . . 1 Drone Launches . | . . . Drone Recoveries . | . . . Exploration | -11 -10 -10 ------------- Run | Yrd Mat Min Turns Passed 2286 | 124 1276 886 Spaces Moved 1236 | 54 720 462 Core 8 | 1 7 . Treads 1228 | 53 713 462 Legs . | . . . Wheels . | . . . Hover . | . . . Flight . | . . . Fastest Speed 50 | 50 50 160 Average Speed 159 | 157 159 160 Slowest Speed 160 | 160 160 160 Overloaded Moves . | . . . Propulsion Burnouts . | . . . Robots Hopped . | . . . Potential Cave-ins . | . . . Cave-ins Triggered . | . . . Exploration Rate (%) 59 | 6 97 74 Regions Visited 2 Branch Regions 1 Pre-discovered Areas 2 | . 2 . Known Exits Taken 1 | . 1 . Unknown Exits Taken 1 | 1 . . Scrap Searched 1 | . . 1 Spaces Dug . | . . . Terrain Destroyed 3 | . 3 . Melee . | . . . Projectile . | . . . AOE 3 | . 3 . Terrain Rammed . | . . . Walls Destroyed . | . . . Machines Disabled . | . . . Actions | -11 -10 -10 --------- Run | Yrd Mat Min Total 1411 | 78 792 541 Wait 17 | . 8 9 Move 1234 | 53 719 462 Hop . | . . . Pick Up 19 | 7 10 2 Fast Attach 5 | 2 3 . Attach 12 | 5 6 1 Detach . | . . . Swap 6 | 1 4 1 Drop 8 | 2 3 3 Fire 94 | 8 33 53 Melee 1 | . 1 . Ram . | . . . Kick . | . . . Crush 1 | . 1 . Escape Stasis . | . . . Rewire . | . . . Trap . | . . . Miscellaneous 14 | . 4 10 Route ------- -11/Scrapyard -10/Materials (discovered 6 exits: *Mat x3 / *Min x2 / [*Sub]) -10/Mines (discovered 4 exits: *Mat x2 / *Exi / [Sub]) History --------- Turn | Location | Event 7 | -11/Scrapyard | Upgraded with Propulsion slot (x1) 7 | -11/Scrapyard | Upgraded with Utility slot (x2) 7 | -11/Scrapyard | Upgraded with Weapon slot (x1) 22 | -11/Scrapyard | Discovered new exit (range 15) 125 | -11/Scrapyard | Entered Materials 126 | -10/Materials | Met a group of wandering Federalists 245 | -10/Materials | Discovered new exit (range 5) 300 | -10/Materials | Build established: Mutant 352 | -10/Materials | Discovered new exit (range 6) 432 | -10/Materials | Discovered new exit (range 17) 461 | -10/Materials | Discovered new exit (range 15) 485 | -10/Materials | Identified exit to Mines 729 | -10/Materials | Build established: Scavenger-Mutant 818 | -10/Materials | Core integrity fell below 50% 893 | -10/Materials | Discovered new exit (range 16) 1196 | -10/Materials | Identified exit to Materials 1237 | -10/Materials | Learned 2 Mines zone layouts 1401 | -10/Materials | Entered Mines 1403 | -10/Mines | Reached level 2 1419 | -10/Mines | Upgraded with Utility slot (x1) 1436 | -10/Mines | Met a Derelict bent on vengeance 1467 | -10/Mines | Found a hidden stash of uninstalled traps 1602 | -10/Mines | Discovered new exit (range 9) 1919 | -10/Mines | Assembled infested the area 2005 | -10/Mines | Deemed a non-threat by the Exiles lab entrance 2005 | -10/Mines | Discovered new exit (range 5) 2010 | -10/Mines | Identified exit to Exiles 2153 | -10/Mines | Learned location of 1 exit from Materials 2210 | -10/Mines | Core integrity fell below 20% 2287 | -10/Mines | Destroyed by as-69072 with Assembled Rifle Last Messages --------------- 01991_ The unstable cave ceiling collapses. 02005_ "No threat detected, you may enter." 02005_ EXIT=FOUND 02010_ EXIT=IDENTIFIED: EXILES 02040_ Searching scrap... 02040_ Found Lgt. Ion Engine. 02040_ Found 60 Matter. 02061_ as-11431 destroyed. 02122_ as-06493 destroyed. 02153_ Acquired derelict log, extracted data. Data stored: Materials exits (x1). 02183_ as-74007 destroyed. 02192_ as-10577 destroyed. 02211_ as-95139 destroyed. 02216_ Acquired 26 matter. 02240_ as-23755 destroyed. 02259_ as-42212 destroyed. 02264_ Acquired 15 matter. 02269_ Acquired 5 matter. 02285_ as-09071 destroyed. Map ----- +----------------------------------------------------+ | ??## ## ######## ####### | | ?####### ######## ####### | | ??###### ####### ##?## | | ??##### & ###### ##### | | ??### & & ##### ##### ###### | | ?### ### ####### | | ### ####### #### ########?##### | | ?### ######### ##### #########??###### | | #########?#?#### ###### ##????#?????###### | | ??#######????######### ##???????????#?#### | | ?????????#??#?######## #######???#??#????#### | | ?#?????????#??######## ######?????#????????### | | ????????#???#?### = ###??#????????????###### | | ???????#??????## %* ##???????????#????##### | | ???#??????????## ! ##??????##??????????#?? | | ?????????#????### ###???????????????????# | | ??????????????#### ###??##???????????????? | | ?????#??##?????#### ###??????#???????#???? | | ???????????####?### ####??????????????#### | | ?????????#??####### ####??####??????## # | | ???????????######## ####? ###??????# | | ?????????#?### #### ## =###????? | | ?????????#?## ####### %= %!###????? | | ????????##### ########%a! ==*!##?????""" | | ??#?????##### ### ! !%] =*%=!a% ???""" | | ????#??#### # ## =%*@ !* !|%!!!% ???""" # | | ???????### ## ## # =######??? # | | ###?##### # %% ##!## ############??? # | | ######### ######%#############???????# | | #>#### #### # ######?????????????# | | # ## # # # % ##?#???????????????## | | ### ## # ## ##?????????????????## | | ##### #### ## ## ##?#?????## ##????? | | ?########## # # ### # ######??## ????? | | #??######## ####### ######??## ????? | | ###?#?#?### ####### # # # ###?# #????? | | ####??#??##### ####### # ###?# ##????? | | ###??##?##### ##???## # ######### ##?????? | | ##????????## ###??##= ###???######??????? | | ##???#??#?## ###??## # " ##??????#????????? | | #########?##*##??#### # #######??????????? | | #########?##%##???### ### #######?????????? | | ##?## ##???### ### ###?????????? | | ##### ##????## #### ##?????????? | | ###### ##### ##?##### ### ######?????? | | ###### ## ##???##### ###### #?????? | | ##??## ## ########## ####### #?????? | | ###??#### ## ########## ######## ###### #?????? | | #####?#### % % #######%##???# #?????? | | ###?????## % ##???# ##????? | +----------------------------------------------------+ Best States ------------- Heat Dissipation 25 Energy Generation 10 Energy Capacity 250 Matter Stores 300 Matter Capacity 300 Sight Range 16 Robot Scan Range 8 Terrain Scan Range 16 Terrain Scan Density 10 Resistance: KI 20 Resistance: TH 20 Resistance: EX 20 Resistance: EM 20 Resistance: I 20 Resistance: S 20 Resistance: P 20 Evasion (%) 40 Recoil Reduction 2 Offensive Hacking 15 Item Schematics ----------------- None Robot Schematics ------------------ None Fabricated ------------ Nothing Repaired ---------- Nothing Alien Tech Used ----------------- None Achievements -------------- None Challenges ------------ None RPGLIKE | -11 -10 -10 --------- Run | Yrd Mat Min Levels Raised 1 | . . 1 XP Earned 6845 | 4000 1495 1350 XP Spent 5450 | 4000 . 1450 Upgrades 13 | 8 . 5 Propulsion Slot 1 | 1 . . Utility Slot 3 | 2 . 1 Weapon Slot 1 | 1 . . Inventory Capacity 3 | 3 . . Sensor Range 4 | . . 4 Hack Attack % 1 | 1 . . Protomatter Created 122 | . 30 92 Integrity Restored 276 | . 90 186 Core 276 | . 90 186 Protomatter Decayed 51 | . 33 18 Game ------ Seed CouplerServoCompactor Manual? 0 Play Time 00:30:08 Cumulative 198.1 hours Start 2025.06.18 @ 19:35:23 End 2025.06.18 @ 19:58:39 Sessions 1 Manual Loads 0 Difficulty Adventurer Special Mode Winter2019/RPGLIKE Game No. 46 Rogue 12 Adventurer 3 Explorer 31 Win Type - Total 4 Types 2/0/2/0/0/0/0/0/0/0 Lore% 52 Gallery% 63 Achievement% 70 Wizard Run 0 Options --------- Layout 0 ASCII 0 Keyboard 0 Movement Mouse Keybinds 0 Fullscreen 2 Font 24/Smallcaps Map View 76x50 Zoom Use 0% Tactical HUD 1 Map Filters NONE Filters NONE Steam 1 RUN: 82fa1b34-a771-4e15-b08b-7fc67be62f20